fUST/lending_fUST_20260522
["ID","MTS","AMOUNT","RATE_DAILY","PERIOD"]
[422803217,1779421839000,-300.0,7.184e-05,2]
[422803243,1779421839000,-500.0,7.803e-05,2]
[422803228,1779421839000,-152.0,7.447e-05,7]
[422803238,1779421839000,-500.0,7.803e-05,2]
[422803261,1779421839000,-184.816,7.804e-05,2]
[422803244,1779421839000,-500.0,7.803e-05,2]
[422803268,1779421839000,-342.23553318,7.805e-05,2]
[422803267,1779421839000,-500.0,7.805e-05,2]
[422803269,1779421839000,-674.40654019,7.805e-05,2]
[422803270,1779421839000,-2697.62616077,7.805e-05,2]
[422803271,1779421839000,-159673.39019006,7.806e-05,2]
[422803265,1779421839000,-500.0,7.805e-05,2]
[422803266,1779421839000,-500.0,7.805e-05,2]
[422803263,1779421839000,-500.0,7.805e-05,2]
[422803264,1779421839000,-500.0,7.805e-05,2]
[422803262,1779421839000,-500.0,7.805e-05,2]
[422803260,1779421839000,-1769.2210317,7.804e-05,2]
[422803256,1779421839000,-500.0,7.803e-05,2]
[422803242,1779421839000,-500.0,7.803e-05,2]
[422803257,1779421839000,-500.0,7.803e-05,2]
[422803259,1779421839000,-500.0,7.803e-05,2]
[422803234,1779421839000,-420.0,7.747e-05,2]
[422803245,1779421839000,-500.0,7.803e-05,2]
[422803246,1779421839000,-500.0,7.803e-05,2]
[422803247,1779421839000,-500.0,7.803e-05,2]
[422803251,1779421839000,-500.0,7.803e-05,2]
[422803248,1779421839000,-500.0,7.803e-05,2]
[422803249,1779421839000,-500.0,7.803e-05,2]
[422803255,1779421839000,-500.0,7.803e-05,2]
[422803253,1779421839000,-347.78404106,7.803e-05,2]
[422803254,1779421839000,-500.0,7.803e-05,2]
[422803252,1779421839000,-500.0,7.803e-05,2]
[422803250,1779421839000,-500.0,7.803e-05,2]
[422803258,1779421839000,-500.0,7.803e-05,2]
[422803284,1779421843000,-1142.50640004,7.806e-05,2]
[422803283,1779421843000,-666.26082326,7.806e-05,2]
[422803287,1779421844000,-628.78756458,7.806e-05,2]
[422803286,1779421844000,-514.25379995,7.806e-05,2]
[422803288,1779421844000,-1297.21331,7.806e-05,2]
[422803289,1779421844000,-3634.422095,7.806e-05,2]
[422803297,1779421847000,-958.5,7.806e-05,2]
[422803296,1779421847000,-5753.5512054,7.806e-05,2]
[422803295,1779421847000,-2245.02553768,7.806e-05,2]
[422803298,1779421847000,-27668.21679297,7.806e-05,2]
[422803303,1779422189000,203.12849607,0.00013941,120]
[422803304,1779422190000,271.06640632,0.00013941,120]
[422803305,1779422195000,526.8199828,0.00013864,120]
[422803307,1779422258000,-200.0,0.00017932,120]
[422803306,1779422258000,-200.0,0.00017846,120]
[422803310,1779422448000,2847.21,0.00014277,120]
[422803311,1779422448000,300.0,5.48e-05,60]
[422803312,1779422448000,2239.34,5.48e-05,60]
[422803309,1779422448000,200.0,0.00014277,120]
[422803316,1779422747000,1371.24,0.00014277,120]
[422803317,1779422748000,1142.7,5.48e-05,60]
[422803319,1779422869000,8000.0,0.00017808,120]
[422803370,1779423032000,-669.85014291,7.251e-05,2]
[422803363,1779423032000,-270.38500162,7.251e-05,2]
[422803486,1779423038000,-753.72173527,7.251e-05,2]
[422803489,1779423038000,-343.14450846,7.425e-05,2]
[422803487,1779423038000,-362.16793648,7.251e-05,2]
[422803490,1779423038000,-152.0,7.451e-05,7]
[422803492,1779423038000,-1200.0,7.699e-05,2]
[422803491,1779423038000,-456.6433121,7.645e-05,2]
[422803488,1779423038000,-2943.87518372,7.251e-05,2]
[422803535,1779423039000,-628.96392503,7.724e-05,2]
[422803521,1779423039000,-500.0,7.716e-05,2]
[422803520,1779423039000,-500.0,7.716e-05,2]
[422803523,1779423039000,-606.1992685,7.716e-05,2]
[422803522,1779423039000,-500.0,7.716e-05,2]
[422803519,1779423039000,-198.9997917,7.716e-05,2]
[422803516,1779423039000,-500.0,7.716e-05,2]
[422803518,1779423039000,-500.0,7.716e-05,2]
[422803517,1779423039000,-500.0,7.716e-05,2]
[422803525,1779423039000,-500.0,7.716e-05,2]
[422803513,1779423039000,-500.0,7.716e-05,2]
[422803524,1779423039000,-199.21799266,7.716e-05,2]
[422803528,1779423039000,-500.0,7.716e-05,2]
[422803527,1779423039000,-500.0,7.716e-05,2]
[422803529,1779423039000,-500.0,7.716e-05,2]
[422803530,1779423039000,-500.0,7.716e-05,2]
[422803533,1779423039000,-500.0,7.716e-05,2]
[422803531,1779423039000,-500.0,7.716e-05,2]
[422803526,1779423039000,-500.0,7.716e-05,2]
[422803515,1779423039000,-500.0,7.716e-05,2]
[422803504,1779423039000,-500.0,7.716e-05,2]
[422803512,1779423039000,-500.0,7.716e-05,2]
[422803494,1779423039000,-177.27980576,7.7e-05,2]
[422803495,1779423039000,-180.94755094,7.7e-05,2]
[422803493,1779423039000,-160.52053158,7.7e-05,2]
[422803496,1779423039000,-183.69258527,7.7e-05,2]
[422803498,1779423039000,-246.43816785,7.716e-05,2]
[422803497,1779423039000,-300.0,7.716e-05,2]
[422803499,1779423039000,-500.0,7.716e-05,2]
[422803501,1779423039000,-500.0,7.716e-05,2]
[422803500,1779423039000,-500.0,7.716e-05,2]
[422803532,1779423039000,-500.0,7.716e-05,2]
[422803507,1779423039000,-500.0,7.716e-05,2]
[422803503,1779423039000,-500.0,7.716e-05,2]
[422803502,1779423039000,-500.0,7.716e-05,2]
[422803509,1779423039000,-500.0,7.716e-05,2]
[422803505,1779423039000,-500.0,7.716e-05,2]
[422803506,1779423039000,-169.07625233,7.716e-05,2]
[422803508,1779423039000,-500.0,7.716e-05,2]
[422803511,1779423039000,-500.0,7.716e-05,2]
[422803510,1779423039000,-500.0,7.716e-05,2]
[422803514,1779423039000,-500.0,7.716e-05,2]
[422803536,1779423039000,-628.96392503,7.724e-05,2]
[422803549,1779423039000,-628.96392503,7.724e-05,2]
[422803538,1779423039000,-628.96392503,7.724e-05,2]
[422803561,1779423039000,-649.92938918,7.724e-05,2]
[422803560,1779423039000,-649.92938918,7.724e-05,2]
[422803564,1779423039000,-649.92938918,7.724e-05,2]
[422803565,1779423039000,-43653.7529264,7.725e-05,2]
[422803566,1779423039000,-3233.4634455,7.725e-05,2]
[422803568,1779423039000,-1390.29862852,7.725e-05,2]
[422803569,1779423039000,-1390.29862852,7.745e-05,2]
[422803570,1779423039000,-1390.29862852,7.766e-05,2]
[422803562,1779423039000,-649.92938918,7.724e-05,2]
[422803571,1779423039000,-1390.29862852,7.786e-05,2]
[422803572,1779423039000,-537.6845,7.801e-05,2]
[422803577,1779423039000,-1664.5108632,7.805e-05,2]
[422803567,1779423039000,-1616.3679128,7.725e-05,2]
[422803573,1779423039000,-219.078,7.804e-05,2]
[422803574,1779423039000,-416.54426006,7.805e-05,2]
[422803576,1779423039000,-2786.97214127,7.805e-05,2]
[422803578,1779423039000,-78367.34532254,7.806e-05,2]
[422803579,1779423039000,-1009344.36454558,7.806e-05,2]
[422803575,1779423039000,-696.74303532,7.805e-05,2]
[422803534,1779423039000,-500.0,7.716e-05,2]
[422803563,1779423039000,-649.92938918,7.724e-05,2]
[422803558,1779423039000,-649.92938918,7.724e-05,2]
[422803537,1779423039000,-628.96392503,7.724e-05,2]
[422803539,1779423039000,-628.96392503,7.724e-05,2]
[422803541,1779423039000,-628.96392503,7.724e-05,2]
[422803540,1779423039000,-628.96392503,7.724e-05,2]
[422803542,1779423039000,-628.96392503,7.724e-05,2]
[422803543,1779423039000,-628.96392503,7.724e-05,2]
[422803547,1779423039000,-628.96392503,7.724e-05,2]
[422803545,1779423039000,-628.96392503,7.724e-05,2]
[422803556,1779423039000,-649.92938918,7.724e-05,2]
[422803550,1779423039000,-628.96392503,7.724e-05,2]
[422803544,1779423039000,-628.96392503,7.724e-05,2]
[422803548,1779423039000,-628.96392503,7.724e-05,2]
[422803552,1779423039000,-628.96392503,7.724e-05,2]
[422803551,1779423039000,-628.96392503,7.724e-05,2]
[422803553,1779423039000,-628.96392503,7.724e-05,2]
[422803555,1779423039000,-628.96392503,7.724e-05,2]
[422803554,1779423039000,-628.96392503,7.724e-05,2]
[422803559,1779423039000,-649.92938918,7.724e-05,2]
[422803557,1779423039000,-649.92938918,7.724e-05,2]
[422803546,1779423039000,-628.96392503,7.724e-05,2]
[422803615,1779423047000,-1970.87925862,7.806e-05,2]
[422803614,1779423047000,-5000.0,7.178e-05,2]
[422803616,1779423294000,299.21318903,6e-05,14]
[422803633,1779423859000,4872.46656362,0.00017,120]
[422803688,1779424122000,874.03,0.000178,120]
[422803699,1779424152000,-5000.0,7.196e-05,2]
[422803702,1779424155000,-356.42704642,7.287e-05,2]
[422803704,1779424155000,-4343.57295358,7.414e-05,2]
[422803703,1779424155000,-300.0,7.413e-05,2]
[422803711,1779424157000,-404.0919782,7.631e-05,2]
[422803712,1779424157000,-223.06434484,7.631e-05,2]
[422803710,1779424157000,-1200.0,7.63e-05,2]
[422803709,1779424157000,-300.0,7.63e-05,2]
[422803706,1779424157000,-500.0,7.416e-05,2]
[422803707,1779424157000,-152.0,7.45e-05,7]
[422803705,1779424157000,-1920.84367696,7.414e-05,2]
[422803708,1779424157000,-300.0,7.63e-05,2]
[422803713,1779424158000,-5000.0,7.631e-05,2]
[422803717,1779424159000,-160.9846657,7.631e-05,2]
[422803718,1779424159000,-702.58560044,7.631e-05,2]
[422803716,1779424159000,-4136.42973386,7.631e-05,2]
[422803720,1779424160000,-509.69033416,7.631e-05,2]
[422803721,1779424160000,-4490.30966584,7.631e-05,2]
[422803722,1779424161000,-5000.0,7.631e-05,2]
[422803723,1779424162000,-5000.0,7.631e-05,2]
[422803724,1779424175000,-5000.0,7.555e-05,2]
[422803725,1779424176000,-5000.0,7.631e-05,2]
[422803726,1779424177000,-5000.0,7.631e-05,2]
[422803727,1779424178000,-5000.0,7.631e-05,2]
[422803729,1779424179000,-2344.14847606,7.631e-05,2]
[422803728,1779424179000,-5000.0,7.631e-05,2]
[422803731,1779424180000,-500.0,7.699e-05,2]
[422803730,1779424180000,-500.0,7.699e-05,2]
[422803732,1779424180000,-929.66334699,7.7e-05,2]
[422803735,1779424180000,-2212.13598435,7.7e-05,2]
[422803734,1779424180000,-1274.20743761,7.7e-05,2]
[422803736,1779424180000,-1513.65657804,7.7e-05,2]
[422803733,1779424180000,-726.18817695,7.7e-05,2]
[422803737,1779424181000,-748.27975533,7.7e-05,2]
[422803738,1779424181000,-2423.87635423,7.7e-05,2]
[422803740,1779424181000,-195.6302215,7.7e-05,2]
[422803741,1779424181000,-201.76823153,7.7e-05,2]
[422803742,1779424181000,-206.38752914,7.7e-05,2]
[422803739,1779424181000,-167.61017186,7.7e-05,2]
[422803743,1779424185000,500.0,7.416e-05,2]
[422803744,1779424187000,556.44773641,7.8e-05,2]
[422803982,1779424238000,-500.0,7.63e-05,2]
[422803983,1779424238000,-500.0,7.63e-05,2]
[422803984,1779424238000,-500.0,7.63e-05,2]
[422803986,1779424238000,-500.0,7.63e-05,2]
[422803988,1779424238000,-500.0,7.63e-05,2]
[422803989,1779424238000,-500.0,7.63e-05,2]
[422803990,1779424238000,-500.0,7.63e-05,2]
[422803987,1779424238000,-500.0,7.63e-05,2]
[422803991,1779424238000,-500.0,7.63e-05,2]
[422803994,1779424238000,-500.0,7.63e-05,2]
[422803985,1779424238000,-500.0,7.63e-05,2]
[422803992,1779424238000,-500.0,7.63e-05,2]
[422803980,1779424238000,-500.0,7.63e-05,2]
[422803976,1779424238000,-49.92697152,7.63e-05,2]
[422803977,1779424238000,-450.07302848,7.63e-05,2]
[422803978,1779424238000,-493.57995302,7.63e-05,2]
[422803979,1779424238000,-6.42004698,7.63e-05,2]
[422803975,1779424238000,-500.0,7.63e-05,2]
[422803974,1779424238000,-500.0,7.63e-05,2]
[422803973,1779424238000,-500.0,7.63e-05,2]
[422803972,1779424238000,-293.13486713,7.63e-05,2]
[422803971,1779424238000,-500.0,7.63e-05,2]
[422803969,1779424238000,-246.43816785,7.63e-05,2]
[422803970,1779424238000,-169.07625233,7.63e-05,2]
[422804004,1779424238000,-500.0,7.63e-05,2]
[422803981,1779424238000,-500.0,7.63e-05,2]
[422804005,1779424238000,-500.0,7.63e-05,2]
[422804008,1779424238000,-500.0,7.63e-05,2]
[422804002,1779424238000,-500.0,7.63e-05,2]
[422804022,1779424238000,-178385.42361657,7.806e-05,2]
[422804023,1779424238000,-8640.13648013,7.806e-05,2]
[422804021,1779424238000,-662969.70216515,7.806e-05,2]
[422804024,1779424238000,-1886.4107131,7.806e-05,2]
[422803993,1779424238000,-500.0,7.63e-05,2]
[422804019,1779424238000,-300.0,7.805e-05,2]
[422804007,1779424238000,-500.0,7.63e-05,2]
[422804017,1779424238000,-219.078,7.804e-05,2]
[422804018,1779424238000,-675.66067765,7.804e-05,2]
[422804016,1779424238000,-537.6845,7.801e-05,2]
[422804014,1779424238000,-500.0,7.63e-05,2]
[422804015,1779424238000,-4443.55226359,7.8e-05,2]
[422804013,1779424238000,-500.0,7.63e-05,2]
[422804020,1779424238000,-1200.0,7.805e-05,2]
[422804011,1779424238000,-500.0,7.63e-05,2]
[422804010,1779424238000,-500.0,7.63e-05,2]
[422804009,1779424238000,-500.0,7.63e-05,2]
[422804006,1779424238000,-500.0,7.63e-05,2]
[422804003,1779424238000,-500.0,7.63e-05,2]
[422803995,1779424238000,-500.0,7.63e-05,2]
[422803996,1779424238000,-500.0,7.63e-05,2]
[422804000,1779424238000,-500.0,7.63e-05,2]
[422803999,1779424238000,-500.0,7.63e-05,2]
[422803997,1779424238000,-500.0,7.63e-05,2]
[422803998,1779424238000,-500.0,7.63e-05,2]
[422804001,1779424238000,-500.0,7.63e-05,2]
[422804012,1779424238000,-500.0,7.63e-05,2]
[422804049,1779424240000,-379.0,7.806e-05,2]
[422804245,1779424246000,-152.0,7.448e-05,7]
[422804249,1779424246000,-152.0,7.45e-05,7]
[422804251,1779424246000,-3449.43678463,7.806e-05,2]
[422804247,1779424246000,-152.0,7.448e-05,7]
[422804290,1779424273000,-500.0,7.63e-05,2]
[422804432,1779425432000,-307.0373061,7.124e-05,2]
[422804453,1779425432000,-210.37717517,7.529e-05,2]
[422804451,1779425432000,-152.0,7.452e-05,7]
[422804445,1779425432000,-1200.0,7.412e-05,2]
[422804443,1779425432000,-393.20750041,7.287e-05,2]
[422804455,1779425432000,-300.0,7.651e-05,2]
[422804439,1779425432000,-289.30732435,7.124e-05,2]
[422804441,1779425432000,-4403.65536955,7.124e-05,2]
[422804457,1779425432000,-300.0,7.651e-05,2]
[422804447,1779425432000,-2699.94006791,7.413e-05,2]
[422804449,1779425432000,-500.0,7.416e-05,2]
[422804461,1779425432000,-300.0,7.651e-05,2]
[422804474,1779425432000,-4318.19362243,7.798e-05,2]
[422804470,1779425432000,-314.467,7.7e-05,2]
[422804472,1779425432000,-152.0,7.742e-05,2]
[422804468,1779425432000,-16810.0,7.7e-05,2]
[422804480,1779425432000,-4195.8789193,7.798e-05,2]
[422804459,1779425432000,-300.0,7.651e-05,2]
[422804466,1779425432000,-303.0689837,7.654e-05,2]
[422804477,1779425432000,-5186.0,7.798e-05,2]
[422804465,1779425432000,-400.0000001,7.654e-05,2]
[422804479,1779425432000,-11758.7414784,7.798e-05,2]
[422804462,1779425432000,-209.6965208,7.654e-05,2]
[422804514,1779425438000,-500.0,7.793e-05,2]
[422804515,1779425438000,-500.0,7.793e-05,2]
[422804513,1779425438000,-500.0,7.793e-05,2]
[422804509,1779425438000,-500.0,7.793e-05,2]
[422804506,1779425438000,-500.0,7.793e-05,2]
[422804512,1779425438000,-500.0,7.793e-05,2]
[422804517,1779425438000,-500.0,7.793e-05,2]
[422804511,1779425438000,-500.0,7.793e-05,2]
[422804510,1779425438000,-500.0,7.793e-05,2]
[422804505,1779425438000,-500.0,7.793e-05,2]
[422804503,1779425438000,-500.0,7.793e-05,2]
[422804502,1779425438000,-5000.0,7.715e-05,2]
[422804507,1779425438000,-500.0,7.793e-05,2]
[422804516,1779425438000,-500.0,7.793e-05,2]
[422804504,1779425438000,-500.0,7.793e-05,2]
[422804518,1779425438000,-500.0,7.793e-05,2]
[422804521,1779425438000,-500.0,7.793e-05,2]
[422804532,1779425438000,-74541.18597987,7.798e-05,2]
[422804533,1779425438000,-84360.11020077,7.8e-05,2]
[422804524,1779425438000,-484.12743593,7.793e-05,2]
[422804526,1779425438000,-500.0,7.793e-05,2]
[422804522,1779425438000,-500.0,7.793e-05,2]
[422804530,1779425438000,-500.0,7.793e-05,2]
[422804523,1779425438000,-500.0,7.793e-05,2]
[422804508,1779425438000,-500.0,7.793e-05,2]
[422804527,1779425438000,-500.0,7.793e-05,2]
[422804528,1779425438000,-500.0,7.793e-05,2]
[422804531,1779425438000,-500.0,7.793e-05,2]
[422804519,1779425438000,-500.0,7.793e-05,2]
[422804520,1779425438000,-500.0,7.793e-05,2]
[422804529,1779425438000,-500.0,7.793e-05,2]
[422804525,1779425438000,-500.0,7.793e-05,2]
[422804573,1779425441000,-1765.38613729,7.8e-05,2]
[422804570,1779425441000,-3011.64108293,7.8e-05,2]
[422804575,1779425441000,-1191.59885502,7.8e-05,2]
[422804568,1779425441000,-137.9327425,7.8e-05,2]
[422804824,1779425443000,-414.25839924,7.8e-05,2]
[422804822,1779425443000,-2781.95648856,7.8e-05,2]
[422804821,1779425443000,-1260.93694841,7.65e-05,2]
[422804828,1779425443000,-2068.94122709,7.8e-05,2]
[422804827,1779425443000,-18146.03227847,7.8e-05,2]
[422804837,1779425443000,-2653.8385751,7.8e-05,2]
[422804872,1779425447000,-152.0,7.735e-05,2]
[422804873,1779425447000,-2554.3671841,7.777e-05,2]
[422804869,1779425447000,-152.0,7.449e-05,7]
[422804870,1779425447000,-152.0,7.452e-05,7]
[422804871,1779425447000,-840.62463227,7.65e-05,2]
[422804876,1779425447000,-9837.08431527,7.8e-05,2]
[422804874,1779425447000,-112400.61946349,7.8e-05,2]
[422804875,1779425447000,-2404.99956709,7.8e-05,2]
[422804878,1779425707000,-2000.0,7.423e-05,2]
[422804879,1779425708000,-2000.0,7.423e-05,2]
[422804880,1779425709000,-1000.0,7.423e-05,2]
[422804881,1779425709000,-1000.0,7.497e-05,2]
[422804884,1779425710000,-2000.0,7.498e-05,2]
[422804882,1779425710000,-200.0,7.497e-05,2]
[422804883,1779425710000,-1800.0,7.498e-05,2]
[422804888,1779425711000,-200.0,7.535e-05,2]
[422804886,1779425711000,-300.0,7.535e-05,2]
[422804885,1779425711000,-1200.0,7.498e-05,2]
[422804887,1779425711000,-300.0,7.535e-05,2]
[422804894,1779425712000,-141.66388078,7.791e-05,2]
[422804893,1779425712000,-500.0,7.791e-05,2]
[422804891,1779425712000,-397.91969771,7.536e-05,2]
[422804892,1779425712000,-560.41642151,7.65e-05,2]
[422804890,1779425712000,-300.0,7.535e-05,2]
[422804889,1779425712000,-100.0,7.535e-05,2]
[422804895,1779425713000,-358.33611922,7.791e-05,2]
[422804898,1779425713000,-500.0,7.791e-05,2]
[422804896,1779425713000,-500.0,7.791e-05,2]
[422804899,1779425713000,-141.66388078,7.791e-05,2]
[422804897,1779425713000,-500.0,7.791e-05,2]
[422804904,1779425714000,-141.66388078,7.791e-05,2]
[422804903,1779425714000,-500.0,7.791e-05,2]
[422804902,1779425714000,-500.0,7.791e-05,2]
[422804900,1779425714000,-358.33611922,7.791e-05,2]
[422804901,1779425714000,-500.0,7.791e-05,2]
[422804908,1779425715000,-500.0,7.791e-05,2]
[422804906,1779425715000,-358.33611922,7.791e-05,2]
[422804907,1779425715000,-500.0,7.791e-05,2]
[422804909,1779425715000,-268.05293311,7.791e-05,2]
[422804905,1779425715000,-373.61094767,7.65e-05,2]
[422804913,1779425715000,-500.0,7.791e-05,2]
[422804912,1779425715000,-500.0,7.791e-05,2]
[422804914,1779425715000,-268.05293311,7.791e-05,2]
[422804911,1779425715000,-500.0,7.791e-05,2]
[422804910,1779425715000,-231.94706689,7.791e-05,2]
[422804915,1779425716000,-231.94706689,7.791e-05,2]
[422804916,1779425716000,-500.0,7.791e-05,2]
[422804918,1779425716000,-500.0,7.791e-05,2]
[422804919,1779425716000,-268.05293311,7.791e-05,2]
[422804917,1779425716000,-500.0,7.791e-05,2]
[422804925,1779425717000,-18.978968,7.791e-05,2]
[422804924,1779425717000,-500.0,7.791e-05,2]
[422804922,1779425717000,-500.0,7.791e-05,2]
[422804923,1779425717000,-500.0,7.791e-05,2]
[422804921,1779425717000,-231.94706689,7.791e-05,2]
[422804920,1779425717000,-249.07396511,7.65e-05,2]
[422804926,1779425718000,-481.021032,7.791e-05,2]
[422804927,1779425718000,-500.0,7.791e-05,2]
[422804929,1779425718000,-500.0,7.791e-05,2]
[422804930,1779425718000,-18.978968,7.791e-05,2]
[422804928,1779425718000,-500.0,7.791e-05,2]
[422804933,1779425719000,-500.0,7.791e-05,2]
[422804934,1779425719000,-500.0,7.791e-05,2]
[422804935,1779425719000,-18.978968,7.791e-05,2]
[422804932,1779425719000,-500.0,7.791e-05,2]
[422804931,1779425719000,-481.021032,7.791e-05,2]
[422804939,1779425720000,-635.07603321,7.791e-05,2]
[422804940,1779425720000,-217.85362472,7.791e-05,2]
[422804938,1779425720000,-500.0,7.791e-05,2]
[422804937,1779425720000,-481.021032,7.791e-05,2]
[422804936,1779425720000,-166.04931007,7.65e-05,2]
[422804941,1779425721000,-282.14637528,7.791e-05,2]
[422804942,1779425721000,-410.95652053,7.791e-05,2]
[422804943,1779425721000,-500.0,7.791e-05,2]
[422804946,1779425721000,-193.10289581,7.791e-05,2]
[422804944,1779425721000,-500.0,7.791e-05,2]
[422804945,1779425721000,-306.89710419,7.791e-05,2]
[422804947,1779425721000,-500.0,7.791e-05,2]
[422804950,1779425722000,-306.89710419,7.791e-05,2]
[422804949,1779425722000,-500.0,7.791e-05,2]
[422804948,1779425722000,-500.0,7.791e-05,2]
[422804956,1779425724000,-30.14825406,7.791e-05,2]
[422804954,1779425724000,-500.0,7.791e-05,2]
[422804955,1779425724000,-500.0,7.791e-05,2]
[422804952,1779425724000,-193.10289581,7.791e-05,2]
[422804953,1779425724000,-500.0,7.791e-05,2]
[422804951,1779425724000,-276.74885013,7.791e-05,2]
[422804957,1779425725000,-469.85174594,7.791e-05,2]
[422804958,1779425725000,-500.0,7.791e-05,2]
[422804960,1779425725000,-500.0,7.791e-05,2]
[422804961,1779425725000,-30.14825406,7.791e-05,2]
[422804959,1779425725000,-500.0,7.791e-05,2]
[422804962,1779425731000,-469.85174594,7.791e-05,2]
[422804963,1779425731000,-189.14825406,7.791e-05,2]
[422804965,1779426358000,-5000.0,7.269e-05,2]
[422804966,1779426423000,-5000.0,7.299e-05,2]
[422804967,1779426435000,4000.0,7.299e-05,2]
[422804968,1779426450000,-650.0,7.299e-05,2]
[422804970,1779426555000,-1383.45573994,7.033e-05,2]
[422804969,1779426555000,-416.54426006,7.033e-05,2]
[422804971,1779426589000,-200.0,7.033e-05,2]
[422805013,1779426632000,-441.3649626,6.963e-05,2]
[422805015,1779426632000,-81.05512326,7.033e-05,2]
[422805011,1779426632000,-4158.1350424,6.963e-05,2]
[422805019,1779426632000,-443.65712038,7.401e-05,2]
[422805009,1779426632000,-400.499995,6.963e-05,2]
[422805017,1779426632000,-389.96130376,7.166e-05,2]
[422805142,1779426638000,-826.23833533,7.799e-05,2]
[422805135,1779426638000,-7897.4170549,7.788e-05,2]
[422805145,1779426638000,-826.23833533,7.799e-05,2]
[422805134,1779426638000,-325.9848009,7.706e-05,2]
[422805144,1779426638000,-826.23833533,7.799e-05,2]
[422805132,1779426638000,-202.6002518,7.505e-05,2]
[422805129,1779426638000,-697.28356386,7.403e-05,2]
[422805136,1779426638000,-157.2723906,7.788e-05,2]
[422805124,1779426638000,-300.0,7.402e-05,2]
[422805127,1779426638000,-300.0,7.402e-05,2]
[422805125,1779426638000,-300.0,7.402e-05,2]
[422805128,1779426638000,-2786.34512118,7.403e-05,2]
[422805131,1779426638000,-152.0,7.452e-05,7]
[422805123,1779426638000,-43.7533651,7.401e-05,2]
[422805122,1779426638000,-712.58951452,7.401e-05,2]
[422805126,1779426638000,-300.0,7.402e-05,2]
[422805138,1779426638000,-166.0,7.796e-05,2]
[422805130,1779426638000,-500.0,7.414e-05,2]
[422805141,1779426638000,-826.23833533,7.799e-05,2]
[422805152,1779426638000,-826.23833533,7.799e-05,2]
[422805151,1779426638000,-826.23833533,7.799e-05,2]
[422805153,1779426638000,-826.23833533,7.799e-05,2]
[422805156,1779426638000,-149734.44501425,7.8e-05,2]
[422805155,1779426638000,-826.23833533,7.799e-05,2]
[422805150,1779426638000,-826.23833533,7.799e-05,2]
[422805157,1779426638000,-3577.7963158,7.8e-05,2]
[422805154,1779426638000,-826.23833533,7.799e-05,2]
[422805148,1779426638000,-826.23833533,7.799e-05,2]
[422805147,1779426638000,-826.23833533,7.799e-05,2]
[422805146,1779426638000,-826.23833533,7.799e-05,2]
[422805139,1779426638000,-909.2069509,7.797e-05,2]
[422805137,1779426638000,-166.0,7.796e-05,2]
[422805133,1779426638000,-227.3017378,7.678e-05,2]
[422805143,1779426638000,-826.23833533,7.799e-05,2]
[422805149,1779426638000,-826.23833533,7.799e-05,2]
[422805140,1779426638000,-826.23833533,7.799e-05,2]
[422805214,1779426641000,-3922.60966843,7.8e-05,2]
[422805211,1779426641000,-1931.37212131,7.8e-05,2]
[422805209,1779426641000,-2120.24758729,7.8e-05,2]
[422805521,1779426643000,-8910.23676657,7.8e-05,2]
[422805614,1779426646000,-307.708,7.8e-05,2]
[422805615,1779426646000,-9298.4587869,7.8e-05,2]
[422805662,1779426647000,-650.0,7.8e-05,2]
[422805644,1779426647000,-650.0,7.8e-05,2]
[422805642,1779426647000,-161.03855515,7.8e-05,2]
[422805654,1779426647000,-650.0,7.8e-05,2]
[422805649,1779426647000,-650.0,7.8e-05,2]
[422805659,1779426647000,-650.0,7.8e-05,2]
[422805645,1779426647000,-650.0,7.8e-05,2]
[422805643,1779426647000,-650.0,7.8e-05,2]
[422805651,1779426647000,-650.0,7.8e-05,2]
[422805632,1779426647000,-156.0,7.8e-05,2]
[422805648,1779426647000,-650.0,7.8e-05,2]
[422805650,1779426647000,-650.0,7.8e-05,2]
[422805655,1779426647000,-650.0,7.8e-05,2]
[422805652,1779426647000,-650.0,7.8e-05,2]
[422805653,1779426647000,-650.0,7.8e-05,2]
[422805646,1779426647000,-650.0,7.8e-05,2]
[422805657,1779426647000,-650.0,7.8e-05,2]
[422805667,1779426647000,-650.0,7.8e-05,2]
[422805661,1779426647000,-650.0,7.8e-05,2]
[422805669,1779426647000,-650.0,7.8e-05,2]
[422805647,1779426647000,-650.0,7.8e-05,2]
[422805637,1779426647000,-156.0,7.8e-05,2]
[422805627,1779426647000,-166.0,7.8e-05,2]
[422805635,1779426647000,-156.0,7.8e-05,2]
[422805616,1779426647000,-11242.55313068,7.8e-05,2]
[422805618,1779426647000,-166.0,7.8e-05,2]